bitfinex/quotes_ETHUSD_20230701
["timestamp","ask_amount","ask_price","bid_price","bid_amount"]
[1688177287836,0.39306984,1926.9,1926.7,13.77441078]
[1688177290161,0.39306984,1926.9,1926.7,16.36952078]
[1688177290360,2.01426451,1927.4,1926.7,20.94104262]
[1688177290361,1.66206451,1927.4,1926.7,20.94104262]
[1688177290663,1.66206451,1927.4,1926.7,22.99785077]
[1688177290664,0.39306984,1927.1,1926.7,22.99785077]
[1688177293954,0.39306984,1927.3,1926.9,1.89]
[1688177294187,5.18766,1927.7,1927.0,2.68752184]
[1688177294188,0.39306984,1927.5,1927.0,2.68752184]
[1688177294388,0.39306984,1927.5,1927.1,15.83575218]
[1688177294589,0.39306984,1927.5,1927.1,21.52327402]
[1688177295091,0.39306984,1927.5,1927.2,2.68752184]
[1688177295292,0.39306984,1927.5,1927.3,12.9715]
[1688177295493,0.39306984,1927.5,1927.4,2.68752184]
[1688177295666,7.08447984,1927.8,1927.4,15.65834184]
[1688177295991,0.39306984,1927.7,1927.4,15.65834184]
[1688177296359,0.34306984,1927.7,1927.4,15.65834184]
[1688177297790,0.34306984,1927.5,1927.4,15.65834184]
[1688177298773,0.34306984,1927.5,1927.4,13.06418184]
[1688177299982,0.34306984,1927.5,1927.4,15.65834184]
[1688177300933,0.34306984,1927.5,1927.4,17.35887602]
[1688177303521,0.34306984,1928.0,1927.4,21.70287602]
[1688177303721,0.34306984,1928.0,1927.5,0.48]
[1688177303911,0.34306984,1928.0,1927.7,15.5624]
[1688177304111,0.34306984,1928.0,1927.7,18.24992184]
[1688177304407,0.34306984,1928.0,1927.7,19.7495133]
[1688177305243,0.34306984,1928.0,1927.8,2.68752184]
[1688177305547,0.34306984,1928.0,1927.9,12.96747]
[1688177307442,0.34306984,1928.2,1927.9,12.96747]
[1688177307845,0.34306984,1928.2,1927.9,15.65499184]
[1688177309260,0.34306984,1928.2,1927.9,17.00199184]
[1688177309626,0.34306984,1928.2,1927.9,19.13473602]
[1688177310725,6.79114,1928.5,1928.0,2.68752184]
[1688177310726,0.34306984,1928.4,1928.0,2.68752184]
[1688177311037,0.34306984,1928.4,1928.1,12.96597]
[1688177313564,0.34306984,1928.4,1928.1,12.836554]
[1688177321184,0.34306984,1928.4,1928.1,15.65089361]
[1688177321385,0.34306984,1928.4,1928.3,15.55772]
[1688177321560,0.34306984,1928.6,1928.3,15.55772]
[1688177322343,0.29306984,1928.6,1928.3,15.55772]
[1688177323398,0.29306984,1928.6,1928.3,12.96477]
[1688177326181,0.29306984,1928.6,1928.4,2.68752184]
[1688177326348,0.29306984,1928.6,1928.5,12.96342]
[1688177329692,0.29306984,1928.8,1928.5,15.65094184]
[1688177329915,0.29306984,1928.8,1928.5,18.09594184]
[1688177332978,0.29306984,1928.8,1928.6,2.68752184]
[1688177333181,0.29306984,1928.8,1928.7,12.96207]
[1688177338454,0.29306984,1929.0,1928.7,15.64959184]
[1688177338610,0.29306984,1929.0,1928.8,2.68752184]
[1688177338806,0.29306984,1929.0,1928.9,12.96075]
[1688177342545,0.29306984,1929.2,1928.9,15.64827184]
[1688177342706,0.29306984,1929.2,1929.0,4.25234902]
[1688177342905,0.29306984,1929.2,1929.1,12.9594]
[1688177343514,0.29306984,1929.4,1929.1,15.64692184]
[1688177343740,0.29306984,1929.4,1929.2,2.68752184]
[1688177343939,0.29306984,1929.4,1929.3,12.95805]
[1688177344250,1.6476,1929.6,1928.8,35.3643]
[1688177344251,0.29306984,1929.2,1928.8,35.3643]
[1688177344549,0.29306984,1929.2,1928.9,10.36829]
[1688177345615,0.29306984,1929.2,1928.9,12.96044]
[1688177346203,0.29306984,1929.2,1928.9,14.81571]
[1688177346430,0.29306984,1929.2,1928.9,17.50323184]
[1688177349922,0.29306984,1929.2,1929.0,2.68752184]
[1688177350232,0.29306984,1929.3,1929.1,15.55128]
[1688177350443,0.29306984,1929.3,1929.2,2.68752184]
[1688177350611,0.29306984,1929.3,1929.2,5.18349]
[1688177351743,0.29306984,1929.3,1929.2,10.36698]
[1688177352049,0.29306984,1929.3,1929.2,5.18349]
[1688177352259,0.29306984,1929.3,1929.2,10.36698]
[1688177352548,0.29306984,1929.3,1929.2,12.29331579]
[1688177352761,0.29306984,1929.3,1929.2,14.88505579]
[1688177354119,0.29306984,1929.3,1929.0,5.18389]
[1688177354328,0.29306984,1929.3,1929.1,5.18372]
[1688177354526,0.29306984,1929.3,1929.1,10.36748]
[1688177355826,0.29306984,1929.3,1929.1,12.95936]
[1688177357165,0.29306984,1929.5,1929.1,15.64688184]
[1688177357454,0.29306984,1929.5,1929.2,4.25221002]
[1688177357748,0.29306984,1929.5,1929.3,12.95805]
[1688177357949,0.29306984,1929.5,1929.3,10.36644]
[1688177358154,5.47579984,1929.5,1929.2,10.36686]
[1688177358353,0.29306984,1929.3,1929.2,5.18343]
[1688177358820,0.29306984,1929.3,1929.2,10.36692]
[1688177361648,0.29306984,1929.3,1929.2,12.95866]
[1688177362538,0.29306984,1929.3,1929.2,10.36692]
[1688177363242,0.29306984,1929.3,1929.2,12.95866]
[1688177365162,0.29306984,1929.3,1929.2,10.36692]
[1688177368594,0.29306984,1929.3,1929.2,14.29508576]
[1688177371089,0.29306984,1929.3,1929.1,10.77268764]
[1688177372839,0.29306984,1929.3,1929.1,5.58920764]
[1688177373125,0.29306984,1929.3,1929.1,13.36484764]
[1688177373488,0.29306984,1929.5,1929.1,16.05236948]
[1688177373691,0.29306984,1929.5,1929.1,17.91679943]
[1688177373902,0.29306984,1929.3,1929.1,17.91679943]
[1688177376546,0.29306984,1929.5,1929.3,12.95805]
[1688177378043,0.29306984,1929.5,1929.3,10.36644]
[1688177378219,0.29306984,1929.5,1929.3,12.95805]
[1688177378541,0.29306984,1929.5,1929.3,14.52260718]
[1688177381466,0.29306984,1929.5,1929.3,17.21012902]
[1688177385331,0.29306984,1929.7,1929.4,2.68752184]
[1688177385533,2.689711,1929.9,1929.5,15.54766]
[1688177385534,0.29306984,1929.9,1929.5,15.54766]
[1688177385866,0.29306984,1929.9,1929.7,12.95537]
[1688177386062,0.63558654,1930.1,1929.7,15.64289184]
[1688177386392,0.34251654,1930.1,1929.7,15.64289184]
[1688177386698,0.34251654,1930.1,1929.8,2.68752184]
[1688177386994,0.34251654,1930.1,1929.9,12.95402]
[1688177388483,0.29306984,1929.9,1929.6,5.18229]
[1688177388854,0.29306984,1929.9,1929.6,10.36471]
[1688177390120,0.29306984,1929.9,1929.6,12.95592]
[1688177391295,0.29306984,1929.9,1929.6,17.16765384]
[1688177392293,0.29306984,1929.9,1929.7,2.68752184]
[1688177392494,0.29306984,1929.9,1929.8,12.9547]
[1688177392877,0.29306984,1929.9,1929.8,10.36376]
[1688177393406,0.29306984,1929.9,1929.8,5.18188]
[1688177398625,0.29306984,1929.9,1929.8,10.36376]
[1688177398798,0.29306984,1929.9,1929.8,14.250183]
[1688177401822,0.24306984,1929.9,1929.8,14.250183]
[1688177402125,0.24306984,1929.9,1929.7,5.20807]
[1688177402326,0.24306984,1929.9,1929.7,5.20801]
[1688177402696,0.24306984,1929.9,1929.7,10.39016]
[1688177405471,0.24306984,1929.9,1929.7,0.02596]
[1688177405847,0.24306984,1929.8,1929.7,0.02596]
[1688177406164,11.92654682,1929.8,1929.7,0.02596]
[1688177408768,6.74466682,1929.8,1929.7,0.02596]
[1688177409383,11.92654682,1929.8,1929.7,0.02596]
[1688177412567,6.74466682,1929.8,1929.7,0.02596]
[1688177413604,11.92654682,1929.8,1929.7,0.02596]
[1688177414569,14.51748682,1929.8,1929.7,0.02596]
[1688177424817,0.24306984,1929.5,1929.3,38.21179772]
[1688177425150,0.24306984,1929.5,1929.4,5.18284]
[1688177426014,0.24306984,1929.5,1929.3,5.59021772]
[1688177426321,11.15099182,1929.5,1928.9,3.13175432]
[1688177426532,5.42676984,1929.2,1928.9,5.31592432]
[1688177426733,10.61046984,1929.2,1928.9,0.13175432]
[1688177427429,10.61046984,1929.2,1928.8,27.57927432]
[1688177427631,5.42676984,1929.2,1928.8,16.33300627]
[1688177427866,5.42676984,1929.2,1928.8,15.64889184]
[1688177428364,5.42676984,1929.2,1928.8,10.46437184]
[1688177428560,0.24306984,1929.2,1928.8,8.29392379]
[1688177428855,0.24306984,1929.2,1928.8,13.47849379]
[1688177429221,0.24306984,1929.2,1928.8,16.06749379]
[1688177429436,0.24306984,1929.2,1928.9,10.36835]
[1688177429959,5.42657984,1929.2,1928.9,10.36835]
[1688177431496,5.42657984,1929.2,1928.9,10.36858]
[1688177432200,5.42657984,1929.2,1928.8,8.24100402]
[1688177432405,5.42657984,1929.2,1928.8,5.18439]
[1688177432603,5.42657984,1929.2,1928.8,6.381851]
[1688177432957,10.61008984,1929.2,1928.8,6.78898752]
[1688177433361,10.61008984,1929.2,1928.8,6.65968352]
[1688177434708,0.24306984,1929.0,1928.5,7.49556278]
[1688177434858,0.24306984,1929.0,1928.7,0.00666]
[1688177435061,5.42713984,1929.0,1928.7,5.18466]
[1688177435258,5.42712984,1929.0,1928.7,12.9619]
[1688177435494,5.42712984,1929.0,1928.7,10.36949]
[1688177435700,5.42709984,1929.0,1928.7,10.36949]
[1688177435857,10.61112984,1929.0,1928.7,10.36949]
[1688177436259,5.42709984,1929.0,1928.7,5.18483]
[1688177436481,14.26424582,1929.0,1928.4,0.42386751]
[1688177436804,14.26424582,1929.0,1928.5,5.18528]
[1688177437131,13.20313984,1929.0,1928.5,5.18528]
[1688177438689,13.20313984,1929.0,1928.5,10.37065]
[1688177439044,13.20313984,1929.0,1928.5,5.18528]
[1688177439341,13.20313984,1929.0,1928.5,10.37065]
[1688177440039,13.20313984,1929.0,1928.5,10.37074]
[1688177440235,13.20313984,1929.0,1928.5,12.29125618]
[1688177442155,5.42709984,1929.0,1928.5,9.70593618]
[1688177442359,5.42709984,1929.0,1928.5,14.88393618]
[1688177442910,5.42709984,1929.0,1928.5,17.57145802]
[1688177443650,5.42709984,1929.0,1928.5,15.33786802]
[1688177443852,0.24306984,1929.0,1928.6,2.68752184]
[1688177444009,0.24306984,1929.0,1928.7,10.36956]
[1688177444212,5.42713984,1929.0,1928.7,10.36956]
[1688177447561,7.22904,1929.1,1928.7,10.36956]
[1688177447744,5.18407,1929.0,1928.7,10.36956]
[1688177448076,5.18392,1929.1,1928.7,10.36956]
[1688177448374,10.36814,1929.0,1928.7,5.18478]
[1688177449551,10.3845687,1929.0,1928.4,4.09741332]
[1688177449755,9.6722787,1929.0,1928.4,5.46424431]
[1688177450078,14.8502787,1929.0,1928.4,10.64985431]
[1688177450386,9.6722787,1929.0,1928.4,10.64985431]
[1688177450741,12.2642887,1929.0,1928.4,10.64985431]
[1688177451686,12.2642887,1929.0,1928.5,0.71138942]
[1688177451852,12.2703587,1929.0,1928.5,0.71138942]
[1688177452033,7.0923587,1929.0,1928.5,0.71138942]
[1688177452233,12.96015,1929.0,1928.5,0.71138942]
[1688177452777,12.96015,1929.0,1928.5,5.89670942]
[1688177453083,12.96015,1929.0,1928.6,10.95964094]
[1688177453233,5.18407,1929.0,1928.6,10.95964094]
[1688177453438,10.36733,1929.2,1928.6,13.55219094]
[1688177454113,10.36746,1929.2,1928.6,13.56862411]
[1688177454317,12.9592,1929.2,1928.6,13.56862411]
[1688177455877,12.9592,1929.2,1928.6,15.12142411]
[1688177456316,12.9592,1929.2,1928.7,0.77716005]
[1688177456475,12.9592,1929.2,1928.8,5.18455]
[1688177457625,12.96493,1929.2,1928.8,10.36912]
[1688177459892,5.1836,1929.2,1928.8,12.9614]
[1688177460087,4.26144,1929.3,1928.9,0.71138942]
[1688177460088,12.03646,1929.3,1928.9,0.71138942]
[1688177460400,5.18322,1929.3,1929.0,10.36794]
[1688177460798,10.36644,1929.3,1929.0,10.36794]
[1688177460991,5.18322,1929.3,1929.0,5.18397]
[1688177461286,5.18322,1929.3,1928.9,11.07980942]
[1688177461725,5.18322,1929.3,1928.9,5.89559942]
[1688177462036,10.36644,1929.3,1928.9,5.89559942]
[1688177463479,5.18322,1929.3,1928.9,5.89559942]
[1688177463838,12.95805,1929.3,1928.7,7.19336232]
[1688177464037,8.12952184,1929.2,1928.7,0.01643232]
[1688177464237,21.47365,1929.1,1928.5,2.609077]
[1688177464480,8.12952184,1929.0,1928.5,0.405577]
[1688177464676,19.21602218,1928.9,1928.5,0.405577]
[1688177464881,5.942,1928.7,1928.1,0.12681777]
[1688177465097,23.68543184,1928.6,1928.1,0.12681777]
[1688177465258,2.36854318,1928.5,1928.1,0.12681777]
[1688177465463,13.44422,1928.4,1927.9,2.2035]
[1688177466202,2.68752184,1928.3,1927.7,30.43889198]
[1688177466397,13.44596,1928.2,1927.6,2.2035]
[1688177467260,2.68752184,1928.1,1927.6,2.2035]
[1688177467476,11.12245218,1928.0,1927.4,35.21815]
[1688177467790,11.12245218,1928.0,1927.4,10.39292341]
[1688177468490,19.25197402,1928.0,1927.4,5.20459341]
[1688177468796,10.37476,1927.8,1927.4,0.01644341]
[1688177469690,5.18737,1927.8,1927.4,5.20458341]
[1688177469845,7.03776718,1927.8,1927.4,0.01644341]
[1688177470474,15.16728902,1927.8,1927.4,0.01644341]
[1688177470756,0.48,1927.7,1927.4,0.01644341]
[1688177470985,7.03776718,1927.8,1927.4,0.01644341]
[1688177471150,5.45558218,1928.0,1927.4,12.98722341]
[1688177471480,10.8542,1927.9,1927.4,12.98722341]
[1688177471795,0.48,1927.8,1927.4,0.01644341]
[1688177472092,5.18758,1927.7,1927.4,0.01644341]
[1688177472388,5.6674,1927.8,1927.4,0.01644341]
[1688177472686,5.6674,1927.8,1927.4,10.39303341]
[1688177473298,5.6674,1927.8,1927.7,1.345]
[1688177473594,7.297053,1927.8,1927.7,1.345]
[1688177473955,1.6513,1928.2,1927.7,1.345]
[1688177474166,10.37312,1928.1,1927.8,1.344]
[1688177474364,8.18631,1928.2,1927.8,6.53122]
[1688177474681,5.18627,1928.2,1927.8,11.71848]
[1688177475265,10.37254,1928.2,1927.8,11.71848]
[1688177475971,5.18627,1928.2,1927.8,11.71848]
[1688177476178,3.0,1928.4,1928.1,1.347]
[1688177476376,0.48,1928.3,1928.0,5.18669]
[1688177476762,5.31810223,1928.5,1928.2,1.347]
[1688177476917,5.18581,1928.4,1928.1,5.18627]
[1688177477118,5.18581,1928.4,1928.3,1.347]
[1688177477352,6.222942,1928.4,1928.3,1.347]
[1688177477655,11.408772,1928.4,1928.3,1.347]
[1688177480055,6.223299,1928.6,1928.4,1.335]
[1688177480354,9.99134,1929.0,1928.5,1.347]
[1688177480519,5.18481,1928.8,1928.5,1.347]
[1688177481861,10.36962,1928.8,1928.5,6.53234]
[1688177482028,11.67533418,1928.8,1928.5,1.347]
[1688177482426,11.67533418,1928.8,1928.7,1.347]
[1688177482633,12.15533418,1928.8,1928.7,1.347]
[1688177486958,14.74761418,1928.8,1928.7,1.347]
[1688177491586,17.43513602,1928.8,1928.7,1.347]
[1688177492242,17.43513602,1928.8,1928.6,1.347]
[1688177492470,15.1855836,1928.7,1928.6,1.347]
[1688177493239,13.44207,1928.7,1928.6,1.347]
[1688177493603,3.99323602,1928.8,1928.6,1.347]
[1688177493604,5.18468,1928.8,1928.6,1.347]
[1688177494078,10.36936,1928.8,1928.4,1.335]
[1688177494283,12.96164,1928.8,1928.4,1.335]
[1688177494867,14.257804,1928.8,1928.4,1.335]
[1688177495533,12.96164,1928.8,1928.7,1.344]
[1688177495738,13.44164,1928.8,1928.7,1.344]
[1688177495977,10.84936,1928.8,1928.7,1.344]
[1688177499455,13.44164,1928.8,1928.7,1.344]
[1688177500055,16.12916184,1928.8,1928.7,1.344]
[1688177500244,17.74207802,1928.8,1928.7,1.344]
[1688177504259,17.74207802,1928.8,1928.6,1.347]
[1688177504501,0.48,1928.7,1928.6,1.347]
[1688177504795,10.84966,1928.7,1928.6,1.347]
[1688177506735,13.44207,1928.7,1928.6,1.347]
[1688177506905,15.25778754,1928.7,1928.6,1.347]
[1688177508707,23.38730938,1928.7,1928.6,1.347]
[1688177509005,23.38730938,1928.7,1928.2,5.49]
[1688177509212,18.40555,1928.5,1928.1,1.347]
[1688177509376,18.40555,1928.5,1927.9,5.3]
[1688177509377,12.9651,1928.3,1927.9,5.3]
[1688177509583,14.57836218,1928.3,1927.9,5.3]
[1688177511004,14.57836218,1928.3,1927.9,10.48697]
[1688177511005,11.98534218,1928.3,1927.9,10.48697]
[1688177511206,6.79930218,1928.3,1927.9,15.69039915]
[1688177511406,5.18604,1928.3,1927.9,15.69039915]
[1688177511626,5.18604,1928.3,1928.1,5.18645]
[1688177511932,5.18604,1928.3,1928.1,5.18644]
[1688177513296,10.37208,1928.3,1928.0,1.347]
[1688177513496,10.37208,1928.3,1928.0,6.53353]
[1688177513695,10.37208,1928.3,1928.0,1.347]
[1688177517101,12.96503,1928.3,1928.0,1.347]
[1688177517322,14.78957718,1928.3,1928.0,1.347]
[1688177519923,14.78957718,1928.3,1928.0,1.297]
[1688177521844,13.39006434,1928.3,1928.0,1.297]
[1688177527654,10.3729,1928.1,1927.9,5.32043915]
[1688177527814,12.96612,1928.1,1927.8,1.344]
[1688177530362,21.09564184,1928.1,1927.7,3.6514]
[1688177530569,10.37398,1927.9,1927.7,3.6514]
[1688177530926,5.18699,1927.9,1927.7,3.6514]
[1688177532080,11.412304,1927.9,1927.7,3.6514]
[1688177533745,6.225314,1927.9,1927.7,3.6514]
[1688177534248,6.225314,1927.9,1927.7,2.3044]
[1688177534549,11.412304,1927.9,1927.7,2.3044]
[1688177534762,6.225314,1927.9,1927.7,2.3044]
[1688177536148,8.12952184,1928.1,1927.7,7.49189]
[1688177536149,10.37323,1928.1,1927.7,7.49189]
[1688177536350,5.18632,1928.2,1927.8,1.347]
[1688177536551,5.18632,1928.2,1927.8,10.37444]
[1688177536552,10.79249559,1928.2,1927.8,10.37444]
[1688177537053,6.64436859,1928.2,1927.8,10.37444]
[1688177538666,6.64436859,1928.2,1927.8,5.18718]
[1688177538862,11.83054859,1928.2,1927.8,5.18718]
[1688177539273,1.45804859,1928.2,1927.8,11.01587341]
[1688177539960,1.45804859,1928.2,1927.8,11.03231341]
[1688177540581,6.64425859,1928.2,1927.8,11.03231341]
[1688177540792,11.83046859,1928.2,1927.8,11.03231341]
[1688177543979,11.83046859,1928.2,1927.9,1.347]
[1688177546387,6.64425859,1928.2,1927.9,6.53398]
[1688177546587,6.224423,1928.2,1927.9,6.53398]
[1688177548813,11.410633,1928.2,1927.9,6.53398]
[1688177549022,12.8109933,1928.2,1927.9,1.347]
[1688177551383,15.4040833,1928.2,1927.9,1.347]
[1688177556447,11.410633,1928.2,1927.9,1.347]
[1688177564665,11.410633,1928.2,1927.8,8.40647]
[1688177565742,11.410633,1928.2,1927.9,0.90146968]
[1688177566238,11.410633,1928.2,1927.8,13.59361]
[1688177567769,12.9668,1928.0,1927.5,1.35947531]
[1688177567929,12.9668,1928.0,1927.6,0.90159747]
[1688177570861,10.37344,1928.0,1927.6,0.90159747]
[1688177571063,5.18672,1928.0,1927.6,0.90159747]
[1688177571262,5.18672,1928.0,1927.6,6.08936747]
[1688177571462,7.45843851,1928.0,1927.6,5.18777]
[1688177571769,7.45843851,1928.0,1927.6,10.37556]
[1688177572139,12.64515851,1928.0,1927.6,5.18777]
[1688177573963,12.64515851,1928.0,1927.5,13.22626587]
[1688177574181,7.45843851,1928.0,1927.5,15.82029587]
[1688177574348,2.27171851,1928.0,1927.6,0.90158771]
[1688177574547,7.45845851,1928.0,1927.7,5.18749]
[1688177574748,0.74584585,1927.9,1927.7,5.18749]
[1688177575358,0.74584585,1927.9,1927.6,5.18772]
[1688177575563,0.74584585,1927.9,1927.5,13.22637587]
[1688177575564,5.93288585,1927.9,1927.5,13.22637587]
[1688177575886,11.11992585,1927.9,1927.5,2.30704255]
[1688177576050,5.93288585,1927.9,1927.5,2.30704255]
[1688177576250,0.59328859,1927.8,1927.5,12.68310255]
[1688177576448,0.74584585,1927.9,1927.5,12.68310255]
[1688177576894,5.93285585,1927.9,1927.5,7.49504255]
[1688177578400,5.93285585,1927.9,1927.6,6.53158]
[1688177578401,5.18701,1927.9,1927.6,6.53158]
[1688177579278,10.37402,1927.9,1927.6,5.18758]
[1688177579479,10.37402,1927.9,1927.5,8.84196255]
[1688177581997,10.37402,1927.9,1927.5,8.79196255]
[1688177583000,15.65503184,1927.9,1927.5,3.60404255]
[1688177583197,1.56550318,1927.8,1927.5,3.60404255]
[1688177583365,6.75294318,1927.8,1927.5,2.25704255]
[1688177584097,6.75294318,1927.8,1927.5,7.44504255]
[1688177584302,5.18701,1927.9,1927.5,7.44504255]
[1688177584465,0.41210534,1928.0,1927.6,1.347]
[1688177584670,0.41210534,1928.0,1927.6,6.53466]
[1688177584995,11.9942133,1928.1,1927.6,6.53466]
[1688177585297,14.68178514,1928.1,1927.6,11.72245]
[1688177585462,11.9942633,1928.1,1927.6,11.72245]
[1688177585863,11.9942633,1928.1,1927.6,13.49545]
[1688177586367,12.41911128,1928.1,1927.6,13.49545]
[1688177591109,15.01233128,1928.1,1927.6,8.30766]
[1688177591570,15.01233128,1928.1,1927.6,13.49545]
[1688177591766,6.09139798,1928.1,1927.7,1.347]
[1688177592002,1.16602259,1928.2,1927.8,11.7213]
[1688177592301,11.53858259,1928.2,1927.8,11.7213]
[1688177592904,11.53858259,1928.2,1927.8,14.0456]
[1688177601008,11.53858259,1928.2,1927.8,15.9003]
[1688177601324,11.53858259,1928.2,1927.8,13.576]
[1688177601530,13.29336059,1928.2,1927.8,13.576]
[1688177605136,8.10708059,1928.2,1927.8,16.16963]
[1688177605631,8.10708059,1928.2,1927.8,13.576]
[1688177605632,13.29326059,1928.2,1927.8,13.576]
[1688177606531,8.10698059,1928.2,1927.8,13.576]
[1688177607422,1.038213,1928.2,1928.1,1.343]
[1688177607723,5.18424,1929.0,1928.3,12.9647]
[1688177607724,5.18443,1928.9,1928.3,12.9647]
[1688177607925,10.31894,1928.9,1928.3,12.9647]
[1688177608297,10.31894,1928.9,1928.4,1.347]
[1688177608493,11.356753,1928.9,1928.5,10.37051]
[1688177609941,10.31894,1928.9,1928.5,10.37051]
[1688177611935,10.31894,1928.9,1928.5,12.62871]
[1688177612174,6.64378974,1929.0,1928.5,15.22139]
[1688177612375,1.45960974,1929.0,1928.5,16.56839]
[1688177612677,1.037811,1929.0,1928.7,10.36956]
[1688177615075,1.037811,1929.0,1928.7,12.96197]
[1688177615277,0.55329591,1929.1,1928.7,12.96197]
[1688177615652,0.13154095,1929.1,1928.7,12.96197]
[1688177616499,1.16928095,1929.1,1928.7,12.96197]
[1688177617096,6.35307095,1929.1,1928.7,12.96197]
[1688177618094,1.16928095,1929.1,1928.7,12.96197]
[1688177619193,6.35312095,1929.1,1928.7,12.96197]
[1688177620005,6.35312095,1929.1,1928.5,7.44357]
[1688177620006,2.68752184,1929.0,1928.5,7.44357]
[1688177620163,18.88293,1928.9,1928.2,3.1128]
[1688177620362,8.12952184,1928.8,1928.0,30.03]
[1688177620589,12.96297,1928.6,1928.0,30.03]
[1688177620794,12.96297,1928.6,1928.0,32.3685]
[1688177620990,1.344,1928.3,1927.5,34.51426332]
[1688177621188,10.37301,1928.1,1927.6,14.49061]
[1688177621395,5.1863,1928.2,1927.6,18.4315]
[1688177621620,10.37268,1928.2,1927.6,18.4315]
[1688177621899,5.1863,1928.2,1927.6,18.4315]
[1688177622258,14.62262184,1928.3,1927.6,18.4315]
[1688177622463,0.48,1928.2,1927.8,10.37425]
[1688177622683,7.17644218,1928.2,1927.8,10.37425]
[1688177623202,7.17644218,1928.2,1927.7,5.18734]
[1688177623203,14.95571218,1928.2,1927.7,5.18734]
[1688177624301,14.95571218,1928.2,1927.7,10.37486]
[1688177624608,6.69644218,1928.2,1927.7,14.31562]
[1688177624982,6.69644218,1928.2,1927.7,14.33206085]
[1688177625608,12.92081418,1928.2,1927.7,14.33206085]
[1688177626101,7.73463418,1928.2,1927.7,14.33206085]
[1688177627300,12.92081418,1928.2,1927.7,14.33206085]
[1688177627465,1.29208142,1928.1,1927.7,14.33206085]
[1688177627780,11.66519142,1928.1,1927.7,0.01644085]
[1688177631420,14.25841142,1928.1,1927.7,0.01644085]
[1688177631574,14.25841142,1928.1,1927.7,5.20390085]
[1688177635114,12.96633,1928.1,1927.7,5.20390085]
[1688177635323,1.16867772,1928.2,1927.7,5.20390085]
[1688177635324,6.35496772,1928.2,1927.7,11.73842085]
[1688177635491,5.31677572,1928.2,1927.7,11.73842085]
[1688177636016,5.18645,1928.1,1927.7,14.33218085]
[1688177636220,5.18645,1928.1,1927.9,5.18699]
[1688177637915,5.18645,1928.1,1927.9,10.37398]
[1688177638334,1.038118,1928.4,1927.9,10.37398]
[1688177638538,5.18541,1928.5,1927.9,12.96747]
[1688177638713,10.37092,1928.5,1928.1,10.37262]
[1688177646922,10.37092,1928.5,1928.1,12.96584]
[1688177649219,5.18541,1928.5,1928.1,12.96584]
[1688177649424,5.18541,1928.5,1928.1,12.66584]
[1688177652257,0.518541,1928.4,1928.1,12.66584]
[1688177652545,5.704201,1928.4,1928.1,10.07262]
[1688177654868,5.18566,1928.4,1928.1,10.07262]
[1688177656671,5.18566,1928.4,1928.1,4.88631]
[1688177657278,10.37132,1928.4,1928.0,10.53362]
[1688177657446,12.96414,1928.4,1928.0,2.19]
[1688177657766,12.96414,1928.4,1927.9,5.18688]
[1688177657965,1.296414,1928.3,1927.9,7.44788]
[1688177658168,10.37246,1928.2,1927.9,7.44797]
[1688177658667,10.37246,1928.2,1927.9,12.63496]
[1688177658965,5.18623,1928.2,1927.9,12.63496]
[1688177663571,5.18623,1928.2,1927.9,15.22845]
[1688177663773,6.3531014,1928.2,1927.9,15.22845]
[1688177665654,6.3531014,1928.2,1927.9,12.63496]
[1688177666164,6.3531014,1928.2,1927.9,7.44797]
[1688177669475,6.3531014,1928.2,1927.9,12.63496]
[1688177670883,6.3531014,1928.2,1927.9,7.44797]
[1688177673262,0.63531014,1928.1,1927.9,7.44797]
[1688177674386,0.63531014,1928.1,1927.9,2.261]
[1688177675280,6.3531014,1928.2,1927.9,2.261]
[1688177678691,11.5393714,1928.2,1927.8,5.18725]
[1688177679962,14.1324614,1928.2,1927.7,9.35401085]
[1688177680164,11.5393714,1928.2,1927.7,7.49201085]
[1688177680389,14.1324614,1928.2,1927.7,2.30464085]
[1688177680696,11.78641614,1928.1,1927.7,2.30464085]
[1688177681691,6.59971614,1928.1,1927.7,7.49214085]
[1688177681896,11.68641614,1928.1,1927.7,7.49214085]
[1688177682108,11.68641614,1928.1,1927.7,2.30464085]
[1688177683089,11.68641614,1928.1,1927.7,7.49209085]
[1688177684712,11.68641614,1928.1,1927.7,2.30464085]
[1688177686408,11.68641614,1928.1,1927.7,7.49213085]
[1688177687816,11.68641614,1928.1,1927.7,2.30464085]
[1688177691016,6.49971614,1928.1,1927.7,7.49215085]
[1688177693786,6.49971614,1928.1,1927.7,2.30464085]
[1688177694086,11.68641614,1928.1,1927.7,2.30464085]
[1688177694599,11.68641614,1928.1,1927.7,7.49206085]
[1688177696021,11.68641614,1928.1,1927.7,2.30464085]
[1688177696626,12.10327403,1928.1,1927.7,2.30464085]
[1688177696787,12.10327403,1928.1,1927.7,7.49216085]
[1688177703913,3.89784924,1928.0,1927.6,3.21419209]
[1688177704220,3.89784924,1928.0,1927.3,2.43121598]
[1688177704221,1.347,1927.8,1927.3,1.89575771]
[1688177704528,10.37558,1927.6,1927.4,0.90168641]
[1688177705019,10.37558,1927.6,1927.3,0.54331332]
[1688177705793,10.37558,1927.6,1927.2,0.54331332]
[1688177706006,6.484725,1927.6,1927.2,11.82274805]
[1688177706343,12.710976,1927.6,1927.3,0.90170473]
[1688177706516,7.523186,1927.6,1927.3,0.90170473]
[1688177706714,5.66817,1927.5,1927.2,0.54331332]
[1688177706917,10.85634,1927.5,1927.2,0.90170448]
[1688177707131,12.70366578,1927.5,1927.2,0.90170448]
[1688177707322,7.51549578,1927.5,1927.2,0.90170448]
[1688177707724,7.51549578,1927.5,1927.2,6.09054448]
[1688177707918,0.48,1927.5,1927.2,10.37771]
[1688177709167,2.335396,1927.6,1927.2,10.37771]
[1688177709312,1.038461,1927.6,1927.2,10.37771]
[1688177710644,10.37534,1927.7,1927.2,12.98858511]
[1688177710822,13.06286184,1927.7,1927.2,12.98858511]
[1688177711135,14.10136284,1927.7,1927.2,12.98858511]
[1688177711549,6.226171,1927.7,1927.2,14.33558511]
[1688177711757,10.37477,1927.8,1927.3,3.68223794]
[1688177711912,8.18712,1927.9,1927.4,10.37647]
[1688177712111,1.038445,1927.8,1927.4,12.97063]
[1688177712365,1.038445,1927.8,1927.5,3.15499274]
[1688177712507,0.4258742,1928.4,1927.6,16.46495274]
[1688177712712,0.5,1928.9,1928.1,1.343]